bitfinex-derivatives/quotes_BTCF0:USTF0_20250812
["timestamp","ask_amount","ask_price","bid_price","bid_amount"]
[1754981419657,0.78908,119060.0,119050.0,1.00373744]
[1754981422450,0.80620322,119070.0,119060.0,0.0839963]
[1754981422651,0.80780322,119070.0,119060.0,0.71225534]
[1754981422857,0.79104,119070.0,119060.0,0.75045534]
[1754981423557,0.79204,119070.0,119060.0,0.75045534]
[1754981424158,0.79204,119070.0,119060.0,0.7587034]
[1754981424852,0.002,119070.0,119060.0,0.7587034]
[1754981425058,0.002,119070.0,119060.0,1.06068792]
[1754981425853,0.002,119070.0,119060.0,0.7587034]
[1754981426448,0.003,119070.0,119060.0,0.7587034]
[1754981426860,0.002,119070.0,119060.0,0.7587034]
[1754981428562,0.002,119070.0,119060.0,0.15473436]
[1754981428762,0.002,119070.0,119060.0,0.7587034]
[1754981432566,0.001,119070.0,119060.0,0.7587034]
[1754981432766,1.0411136,119080.0,119060.0,0.40771866]
[1754981432966,1.0401136,119080.0,119070.0,0.42417382]
[1754981433167,1.34209812,119080.0,119070.0,0.44846382]
[1754981433567,1.34309812,119080.0,119070.0,0.44846382]
[1754981433768,0.957128,119080.0,119070.0,0.44846382]
[1754981433960,0.958728,119080.0,119070.0,0.44846382]
[1754981434455,0.8747424,119080.0,119070.0,0.44846382]
[1754981434659,0.8747424,119080.0,119070.0,0.54887655]
[1754981435058,0.8747424,119080.0,119070.0,0.54987655]
[1754981435366,0.8757424,119080.0,119070.0,0.54987655]
[1754981436067,0.8747424,119080.0,119070.0,0.54987655]
[1754981436966,0.8747424,119080.0,119070.0,0.1474793]
[1754981437163,0.8747424,119080.0,119070.0,0.54987655]
[1754981437761,0.8747424,119080.0,119070.0,0.53513655]
[1754981437967,0.8747424,119080.0,119070.0,0.54987655]
[1754981438362,1.27713965,119080.0,119070.0,0.001]
[1754981438568,0.8913769,119080.0,119070.0,0.001]
[1754981438763,0.0839964,119060.0,119050.0,0.084001]
[1754981438963,0.8711964,119060.0,119050.0,0.084001]
[1754981439157,0.8711964,119060.0,119050.0,0.107461]
[1754981439466,0.8711964,119060.0,119050.0,0.54888825]
[1754981442968,0.8731113,119070.0,119060.0,0.1074564]
[1754981443173,0.8721113,119070.0,119060.0,0.1074564]
[1754981443859,0.8721113,119070.0,119060.0,0.54888365]
[1754981444074,0.8721093,119070.0,119060.0,0.54888365]
[1754981444575,0.8711093,119070.0,119060.0,0.54988365]
[1754981445074,0.0839893,119070.0,119060.0,0.54988365]
[1754981445370,0.8708693,119070.0,119060.0,0.54988365]
[1754981448976,0.78688,119070.0,119060.0,0.54988365]
[1754981452377,0.80355488,119080.0,119070.0,0.0839893]
[1754981452579,0.80355488,119080.0,119070.0,0.51228655]
[1754981452777,0.80355488,119080.0,119070.0,0.54874655]
[1754981454182,0.80455488,119080.0,119070.0,0.54874655]
[1754981455280,0.80355488,119080.0,119070.0,0.54874655]
[1754981455681,0.88753718,119080.0,119070.0,0.54874655]
[1754981456279,0.80355488,119080.0,119070.0,0.54874655]
[1754981456479,0.88753718,119080.0,119070.0,0.54874655]
[1754981456683,0.88753718,119080.0,119070.0,0.1067893]
[1754981457076,0.88753718,119080.0,119070.0,0.50918655]
[1754981458276,0.88753718,119080.0,119070.0,0.52517655]
[1754981458475,0.88753718,119080.0,119070.0,0.53508655]
[1754981458680,0.88753718,119080.0,119070.0,0.54874655]
[1754981458877,0.88753718,119080.0,119070.0,0.1463493]
[1754981459178,0.88753718,119080.0,119070.0,0.54874655]
[1754981464784,0.88753718,119080.0,119070.0,0.1463493]
[1754981464984,0.88753718,119080.0,119070.0,0.54874655]
[1754981465376,1.02703718,119080.0,119070.0,0.1463493]
[1754981465579,0.88753718,119080.0,119070.0,0.54874655]
[1754981466081,0.01707488,119080.0,119070.0,0.54874655]
[1754981466283,0.80267488,119080.0,119070.0,0.54874655]
[1754981469286,0.88665718,119080.0,119070.0,0.54874655]
[1754981469481,0.80267488,119080.0,119070.0,0.54874655]
[1754981471783,0.88665708,119080.0,119070.0,0.54874655]
[1754981472187,0.88665708,119080.0,119070.0,0.1463493]
[1754981472390,0.88665708,119080.0,119070.0,0.54874655]
[1754981474893,0.80267488,119080.0,119070.0,0.54874655]
[1754981479894,0.01707488,119080.0,119070.0,0.54874655]
[1754981480093,0.80179488,119080.0,119070.0,0.54874655]
[1754981483500,0.80163488,119080.0,119070.0,0.54874655]
[1754981492505,0.80163488,119080.0,119070.0,0.50918655]
[1754981492711,0.80163488,119080.0,119070.0,0.54917655]
[1754981493112,0.80163488,119080.0,119070.0,0.60362655]
[1754981493814,0.01707488,119080.0,119070.0,0.60362655]
[1754981494007,0.80099488,119080.0,119070.0,0.60362655]
[1754981498212,0.80099488,119080.0,119070.0,0.2012293]
[1754981498512,0.80099488,119080.0,119070.0,0.60362655]
[1754981503117,0.78392,119080.0,119070.0,0.60362655]
[1754981503618,0.78392,119080.0,119060.0,0.3359782]
[1754981503619,0.0839893,119070.0,119060.0,0.3359782]
[1754981503807,0.0839893,119070.0,119060.0,0.4187482]
[1754981504012,0.0839893,119070.0,119060.0,0.82114545]
[1754981504413,1.0358848,119080.0,119070.0,0.0839889]
[1754981504607,1.0358848,119080.0,119070.0,0.1074389]
[1754981506323,1.1753848,119080.0,119070.0,0.1074389]
[1754981506517,1.0358848,119080.0,119070.0,0.1074389]
[1754981507225,1.0358848,119080.0,119070.0,0.1084389]
[1754981507620,1.0358848,119080.0,119070.0,0.0849889]
[1754981508123,1.0358848,119080.0,119070.0,0.1084389]
[1754981509627,1.0358848,119080.0,119070.0,0.0849889]
[1754981509824,1.43828205,119080.0,119070.0,0.001]
[1754981510220,1.60624205,119080.0,119070.0,0.001]
[1754981511026,1.69023125,119080.0,119060.0,0.3359809]
[1754981511226,0.48638625,119070.0,119060.0,0.3359809]
[1754981511920,0.48638625,119070.0,119060.0,0.3588109]
[1754981512825,0.083989,119070.0,119060.0,0.3588109]
[1754981513128,0.48638625,119070.0,119060.0,0.3588109]
[1754981513625,0.48638625,119070.0,119060.0,0.0849963]
[1754981513820,0.50364834,119070.0,119060.0,0.0849963]
[1754981514021,0.50364834,119070.0,119060.0,0.001]
[1754981514223,0.67162434,119070.0,119060.0,0.001]
[1754981514624,0.67984805,119070.0,119060.0,0.001]
[1754981515928,0.68084805,119070.0,119060.0,0.001]
[1754981516328,0.0839961,119060.0,119050.0,0.2748384]
[1754981516530,1.40873335,119060.0,119050.0,0.2748384]
[1754981516730,1.0063361,119060.0,119050.0,0.2748384]
[1754981517731,1.0073361,119060.0,119050.0,0.2748384]
[1754981517922,1.0073361,119060.0,119050.0,0.3096384]
[1754981519931,1.40973335,119060.0,119050.0,0.3096384]
[1754981520331,1.40973335,119060.0,119050.0,0.2748384]
[1754981521426,0.0849961,119060.0,119050.0,0.3230984]
[1754981521731,0.8675161,119060.0,119050.0,0.77411565]
[1754981522222,0.001,119060.0,119050.0,0.77411565]
[1754981522428,0.78348,119060.0,119050.0,0.77411565]
[1754981522731,0.78548,119060.0,119050.0,0.77411565]
[1754981522936,0.78544,119060.0,119050.0,0.77411565]
[1754981523334,0.78244,119060.0,119050.0,0.77611565]
[1754981523533,0.8664361,119060.0,119050.0,0.77711565]
[1754981523735,0.10125109,119070.0,119060.0,0.0839961]
[1754981523934,0.79966209,119070.0,119060.0,0.60610335]
[1754981524531,0.88365109,119070.0,119060.0,0.60610335]
[1754981528435,0.79966209,119070.0,119060.0,0.60610335]
[1754981535439,0.45675879,119090.0,119080.0,0.083982]
[1754981535739,0.79857879,119090.0,119080.0,0.60608925]
[1754981535934,0.88255369,119090.0,119080.0,0.203692]
[1754981536136,1.28495094,119090.0,119080.0,0.189872]
[1754981536540,0.50323094,119090.0,119080.0,0.189872]
[1754981536930,1.28487094,119090.0,119080.0,0.189872]
[1754981537134,1.20089604,119090.0,119080.0,0.189872]
[1754981538329,0.79849879,119090.0,119080.0,0.203692]
[1754981538735,0.01685879,119090.0,119080.0,0.203692]
[1754981539040,0.79833879,119090.0,119080.0,0.203692]
[1754981539741,0.74577612,119100.0,119090.0,0.0839749]
[1754981540042,1.52721612,119100.0,119090.0,0.1077249]
[1754981541443,1.52721612,119100.0,119090.0,0.1087249]
[1754981541742,0.66180152,119100.0,119090.0,0.1087249]
[1754981541935,0.49385472,119100.0,119090.0,0.1087249]
[1754981542134,0.94834073,119100.0,119090.0,0.1834249]
[1754981542638,1.35073798,119100.0,119090.0,0.2064149]
[1754981543341,1.35051823,119100.0,119090.0,0.2064149]
[1754981545644,1.35035823,119100.0,119090.0,0.1572249]
[1754981545947,1.35035823,119100.0,119090.0,0.2064149]
[1754981546447,0.94796098,119100.0,119090.0,0.2064149]
[1754981549152,0.94776098,119100.0,119090.0,0.2064149]
[1754981549350,0.16680088,119100.0,119090.0,0.60881215]
[1754981549550,0.94768088,119100.0,119090.0,0.60881215]
[1754981550044,0.94768088,119100.0,119090.0,0.2064149]
[1754981551447,1.35007813,119100.0,119090.0,0.0849749]
[1754981551654,1.35007813,119100.0,119090.0,0.02475]
[1754981552348,1.35007813,119100.0,119090.0,0.1087249]
[1754981553256,1.35007813,119100.0,119090.0,0.02475]
[1754981553448,1.35007813,119100.0,119090.0,0.001]
[1754981553949,1.48957813,119100.0,119090.0,0.001]
[1754981555552,1.48957813,119100.0,119080.0,0.2519445]
[1754981555553,0.0839751,119090.0,119080.0,0.2519445]
[1754981555750,0.48637235,119090.0,119080.0,0.2756945]
[1754981556051,0.48637235,119090.0,119080.0,0.191713]
[1754981556248,0.48637235,119090.0,119080.0,0.1077315]
[1754981556445,0.48637235,119090.0,119080.0,0.0839815]
[1754981556652,0.0839892,119070.0,119060.0,0.12653634]
[1754981556844,1.40632645,119070.0,119060.0,0.12653634]
[1754981557548,1.40632645,119070.0,119060.0,0.02375]
[1754981558055,1.40632645,119070.0,119060.0,0.1077462]
[1754981558953,1.41480723,119070.0,119060.0,0.1077462]
[1754981559153,1.01240998,119070.0,119060.0,0.1077462]
[1754981559353,1.41480723,119070.0,119060.0,0.1077462]
[1754981559657,1.41580723,119070.0,119060.0,0.1077462]
[1754981559954,1.40732645,119070.0,119060.0,0.1077462]
[1754981563256,1.40708645,119070.0,119060.0,0.1077462]
[1754981563756,1.40708645,119070.0,119060.0,0.1675162]
[1754981563947,1.40708645,119070.0,119060.0,0.2054362]
[1754981565357,1.40708645,119070.0,119060.0,0.1562462]
[1754981566256,0.62688645,119070.0,119060.0,0.1562462]
[1754981566552,1.40700645,119070.0,119060.0,0.1562462]
[1754981566748,0.0839961,119060.0,119050.0,0.2757561]
[1754981566951,0.0840031,119050.0,119040.0,0.336033]
[1754981567146,1.26644035,119050.0,119040.0,0.433723]
[1754981567559,1.26644035,119050.0,119040.0,0.457473]
[1754981569253,1.26644035,119050.0,119040.0,0.408283]
[1754981569451,1.26644035,119050.0,119040.0,0.359783]
[1754981569756,1.26644035,119050.0,119040.0,0.384813]
[1754981569955,1.26644035,119050.0,119040.0,0.454003]
[1754981570260,1.2832122,119050.0,119040.0,0.454003]
[1754981572659,1.2832122,119050.0,119040.0,0.3699938]
[1754981572862,1.2832122,119050.0,119040.0,0.1917646]
[1754981573047,1.2832122,119050.0,119040.0,0.02375]
[1754981573253,1.2832122,119050.0,119040.0,0.1077602]
[1754981574060,1.2832122,119050.0,119040.0,0.1085102]
[1754981574860,1.2832122,119050.0,119040.0,0.0245]
[1754981575161,0.0840102,119040.0,119030.0,0.2765486]
[1754981575361,0.48640745,119040.0,119030.0,0.0245]
[1754981575566,0.8888047,119040.0,119030.0,0.0245]
[1754981575856,0.48640745,119040.0,119030.0,0.0245]
[1754981576861,0.55484158,119040.0,119030.0,0.1085172]
[1754981577556,0.55484158,119040.0,119030.0,0.1805572]
[1754981577866,0.55484158,119040.0,119030.0,0.2027372]
[1754981578459,0.55484158,119040.0,119030.0,0.2037372]
[1754981578856,0.69434158,119040.0,119030.0,0.2037372]
[1754981587263,1.09673883,119040.0,119030.0,0.0255]
[1754981587463,0.69434158,119040.0,119030.0,0.0255]
[1754981587661,1.09673883,119040.0,119030.0,0.001]
[1754981590760,1.12367467,119040.0,119030.0,0.001]
[1754981591861,1.12367467,119040.0,119030.0,0.0255]
[1754981593462,0.72127742,119040.0,119030.0,0.0255]
[1754981593664,1.12367467,119040.0,119030.0,0.0255]
[1754981596564,1.90251467,119040.0,119030.0,0.0255]
[1754981596964,1.50011742,119040.0,119030.0,0.0255]
[1754981597366,1.50013265,119040.0,119030.0,0.0255]
[1754981598469,1.9025299,119040.0,119030.0,0.0255]
[1754981599470,1.0977354,119040.0,119030.0,0.0255]
[1754981599667,1.9025299,119040.0,119030.0,0.0255]
[1754981599864,1.0977354,119040.0,119030.0,0.0255]
[1754981600060,1.9025299,119040.0,119030.0,0.0255]
[1754981611672,1.87557883,119040.0,119030.0,0.0255]
[1754981613973,1.87557883,119040.0,119030.0,0.0255]
[1754981617574,1.07078433,119040.0,119030.0,0.0255]
[1754981617877,1.87557883,119040.0,119030.0,0.0255]
[1754981618762,1.87557883,119040.0,119030.0,0.05838]
[1754981618966,1.87557883,119040.0,119030.0,0.0255]
[1754981620173,1.07078433,119040.0,119030.0,0.0255]
[1754981620369,1.87557883,119040.0,119030.0,0.0255]
[1754981620773,3.03753883,119040.0,119030.0,0.0255]
[1754981622764,0.2235172,119030.0,119020.0,0.00046]
[1754981622965,0.64279682,119030.0,119020.0,0.00046]
[1754981624975,0.64279682,119030.0,119020.0,0.0235]
[1754981626478,0.62591445,119030.0,119020.0,0.0235]
[1754981636577,0.62591445,119030.0,119020.0,0.00046]
[1754981637182,0.62591445,119030.0,119020.0,0.02483]
[1754981643275,0.62591445,119030.0,119020.0,0.08352]
[1754981643589,0.62591445,119030.0,119020.0,0.05056]
[1754981644082,0.62591445,119030.0,119020.0,0.03436]
[1754981644285,0.62591445,119030.0,119020.0,0.02483]
[1754981644685,0.62591445,119030.0,119020.0,0.00046]
[1754981649692,0.62591445,119030.0,119020.0,0.02483]
[1754981652690,1.1302153,119030.0,119020.0,0.02483]
[1754981657495,1.1302153,119030.0,119020.0,0.00046]
[1754981658696,1.15732613,119030.0,119020.0,0.02483]
[1754981660998,1.15732613,119030.0,119020.0,0.00046]
[1754981661899,1.1302153,119030.0,119020.0,0.00046]
[1754981663704,1.1302153,119030.0,119020.0,0.02455]
[1754981670699,1.1302153,119030.0,119020.0,0.00046]
[1754981670905,0.24067144,119010.0,119000.0,0.02409]
[1754981671105,1.92320954,119010.0,119000.0,0.02409]
[1754981671607,0.223538,119000.0,118990.0,0.04646]
[1754981671802,1.1703261,119000.0,118990.0,0.09373]
[1754981672707,1.44254652,119000.0,118990.0,0.09373]
[1754981673500,1.44254652,119000.0,118990.0,0.11782]
[1754981673705,1.45090563,119000.0,118990.0,0.11782]
[1754981674007,1.45090563,119000.0,118990.0,0.11982]
[1754981674203,1.85402415,119000.0,118990.0,0.11982]
[1754981674401,1.85402415,119000.0,118990.0,0.12182]
[1754981675307,1.07822415,119000.0,118990.0,0.12182]
[1754981675609,1.85394415,119000.0,118990.0,0.12182]
[1754981686924,2.92642563,119000.0,118990.0,0.12182]
[1754981687218,2.95046563,119000.0,118990.0,0.12182]
[1754981687627,3.35358415,119000.0,118990.0,0.12182]
[1754981691929,1.85358415,119000.0,118990.0,0.12182]
[1754981692732,1.954351,119000.0,118990.0,0.12182]
[1754981697131,1.954351,119000.0,118990.0,0.004]
[1754981697925,0.2235521,118980.0,118970.0,0.04216823]
[1754981698128,1.94529599,118980.0,118970.0,0.01840823]
[1754981698733,1.44159845,118980.0,118970.0,0.01840823]
[1754981699736,1.51002675,118980.0,118970.0,0.01840823]
[1754981700132,1.51002675,118980.0,118970.0,0.04216823]
[1754981700537,1.51002675,118980.0,118970.0,0.07586823]
[1754981701641,1.51002675,118980.0,118970.0,0.04216823]
[1754981704042,1.51002675,118980.0,118970.0,0.07288823]
[1754981704345,1.51002675,118980.0,118970.0,0.13700823]
[1754981705042,1.50982675,118980.0,118970.0,0.13700823]
[1754981705644,3.00982675,118980.0,118970.0,0.13700823]
[1754981706246,3.00982675,118980.0,118970.0,0.22106743]
[1754981706450,3.00982675,118980.0,118970.0,0.13700823]
[1754981710546,1.50982675,118980.0,118970.0,0.13700823]
[1754981713851,1.50982675,118980.0,118970.0,0.12299823]
[1754981718657,1.50982675,118980.0,118970.0,0.05157823]
[1754981718856,1.47008675,118980.0,118970.0,0.01840823]
[1754981719257,1.49319675,118980.0,118970.0,0.13758823]
[1754981720763,1.69469942,118980.0,118970.0,0.13758823]
[1754981721761,1.69469942,118980.0,118970.0,0.08837823]
[1754981722157,1.69469942,118980.0,118970.0,0.05181823]
[1754981722363,1.99710393,118980.0,118970.0,0.01840823]
[1754981722958,1.99710393,118980.0,118970.0,0.04240823]
[1754981723365,1.99710393,118980.0,118970.0,0.07662823]
[1754981723565,1.69413942,118980.0,118970.0,0.07662823]
[1754981723766,1.69413942,118980.0,118970.0,0.13840823]
[1754981723955,1.69413942,118980.0,118970.0,0.12341823]
[1754981724163,0.91989942,118980.0,118970.0,0.13840823]
[1754981724367,1.71053942,118980.0,118970.0,0.13840823]
[1754981733170,0.93633942,118980.0,118970.0,0.17325713]
[1754981733375,1.71017942,118980.0,118970.0,0.22246713]
[1754981735178,1.71017942,118980.0,118970.0,0.13840823]
[1754981735677,1.71017942,118980.0,118970.0,0.07394823]
[1754981735976,1.71017942,118980.0,118970.0,0.10816823]
[1754981736477,1.71017942,118980.0,118970.0,0.13840823]
[1754981737272,1.71017942,118980.0,118970.0,0.22246713]
[1754981742776,1.1053704,118980.0,118970.0,0.22246713]
[1754981743174,1.71017942,118980.0,118970.0,0.22246713]
[1754981743374,1.71017942,118980.0,118970.0,0.13840823]
[1754981744779,1.71017942,118980.0,118970.0,0.12341823]
[1754981745378,1.71017942,118980.0,118970.0,0.05765823]
[1754981745683,2.01258393,118980.0,118970.0,0.01840823]
[1754981745882,2.01258393,118980.0,118950.0,0.1332831]
[1754981745883,0.084066,118960.0,118950.0,0.1332831]
[1754981746179,1.50186502,118960.0,118950.0,0.2040731]
[1754981747384,1.50186502,118960.0,118950.0,0.1396131]
[1754981747584,1.5102958,118960.0,118950.0,0.2040731]
[1754981747786,1.5112958,118960.0,118950.0,0.2040731]
[1754981747981,1.5112958,118960.0,118950.0,0.0095]
[1754981748177,0.084073,118950.0,118940.0,0.1572883]
[1754981748485,0.72843202,118950.0,118940.0,0.2040783]
[1754981748681,0.42602751,118950.0,118940.0,0.2040783]
[1754981749783,0.42602751,118950.0,118940.0,0.50648281]
[1754981749984,0.40291751,118950.0,118940.0,0.50648281]
[1754981750185,0.31884451,118950.0,118940.0,0.51478332]
[1754981750483,0.40291761,118950.0,118940.0,0.51478332]
[1754981750684,0.1005131,118950.0,118940.0,0.21237881]
[1754981752588,0.1005131,118950.0,118940.0,0.61566409]
[1754981756393,0.1005131,118950.0,118940.0,0.21237881]
[1754981756589,1.0256101,118960.0,118950.0,0.0840731]
[1754981756789,0.941538,118960.0,118950.0,0.60469838]
[1754981756988,0.956588,118960.0,118950.0,0.60469838]
[1754981757292,0.979778,118960.0,118950.0,0.60469838]
[1754981757493,0.979778,118960.0,118950.0,0.2014131]
[1754981758193,0.980778,118960.0,118950.0,0.2014131]
[1754981760094,0.873276,118960.0,118950.0,0.60469838]
[1754981760294,0.78921,118960.0,118950.0,0.60469838]
[1754981760487,0.873276,118960.0,118950.0,0.60469838]
[1754981760692,0.896466,118960.0,118950.0,0.60469838]
[1754981761095,0.896466,118960.0,118950.0,0.2014131]
[1754981767792,1.29975128,118960.0,118950.0,0.2014131]
[1754981770000,1.30075128,118960.0,118950.0,0.2014131]
[1754981770703,1.30175128,118960.0,118950.0,0.2014131]
[1754981771005,0.898466,118960.0,118950.0,0.2014131]
[1754981771201,1.29975128,118960.0,118950.0,0.2014131]
[1754981771403,1.29875128,118960.0,118950.0,0.2014131]
[1754981771597,1.29875128,118960.0,118950.0,0.0840731]
[1754981771903,1.29875128,118960.0,118950.0,0.1067031]
[1754981772093,1.29875128,118960.0,118950.0,0.1480631]
[1754981772301,1.29875128,118960.0,118950.0,0.1625731]
[1754981772600,1.5003571,118960.0,118950.0,0.1625731]
[1754981772800,1.5003571,118960.0,118950.0,0.2014131]
[1754981773199,1.5003571,118960.0,118950.0,0.50385865]
[1754981773400,1.5003571,118960.0,118950.0,0.2014131]
[1754981779610,1.5003571,118960.0,118950.0,0.50385865]
[1754981780313,1.5003571,118960.0,118950.0,0.2014131]
[1754981780516,1.5003571,118960.0,118950.0,0.50385865]
[1754981780715,1.5003571,118960.0,118950.0,0.2014131]
[1754981780915,1.5003571,118960.0,118950.0,0.50385865]
[1754981783113,1.5003571,118960.0,118950.0,0.2014131]
[1754981787628,1.4995971,118960.0,118950.0,0.50385865]
[1754981788428,0.894706,118960.0,118950.0,0.50385865]
[1754981788728,1.4995971,118960.0,118950.0,0.50385865]
[1754981790432,1.4995971,118960.0,118950.0,0.0840731]
[1754981790729,1.4995971,118960.0,118950.0,0.40986865]
[1754981790929,1.4995971,118960.0,118950.0,0.48956865]
[1754981791130,0.894706,118960.0,118950.0,0.52320868]
[1754981791326,1.19714155,118960.0,118950.0,0.52320868]
[1754981791824,0.894696,118960.0,118950.0,0.52320868]
[1754981792025,1.19714155,118960.0,118950.0,0.52320868]
[1754981792728,1.4995871,118960.0,118950.0,0.52320868]
[1754981793129,1.4995871,118960.0,118950.0,0.22076313]
[1754981798836,1.4995871,118960.0,118950.0,0.20635313]
[1754981799636,1.4992271,118960.0,118950.0,0.13563313]
[1754981800338,1.4992271,118960.0,118950.0,0.12582313]
[1754981801640,1.4992271,118960.0,118950.0,0.01840003]
[1754981802436,1.4992271,118960.0,118950.0,0.10247313]
[1754981804039,1.5002271,118960.0,118950.0,0.12582313]
[1754981804843,1.5022271,118960.0,118950.0,0.12582313]
[1754981806639,1.5022271,118960.0,118950.0,0.20635313]
[1754981806840,1.5022271,118960.0,118950.0,0.22076313]
[1754981807849,1.5022271,118960.0,118950.0,0.13563313]
[1754981811648,1.5019471,118960.0,118950.0,0.20417313]
[1754981811953,1.5019471,118960.0,118950.0,0.22027313]
[1754981813452,0.102116,118960.0,118950.0,0.47598868]
[1754981813649,0.873836,118960.0,118950.0,0.52271868]
[1754981813949,1.17628155,118960.0,118950.0,0.52271868]
[1754981814159,1.17628155,118960.0,118950.0,0.53132976]
[1754981814354,1.5028171,118960.0,118950.0,0.22027313]
[1754981814542,1.5028171,118960.0,118950.0,0.52271868]
[1754981814946,1.5008171,118960.0,118950.0,0.52271868]
[1754981815653,1.5018171,118960.0,118950.0,0.52271868]
[1754981816048,1.5008171,118960.0,118950.0,0.52271868]
[1754981816355,1.4998171,118960.0,118950.0,0.52271868]
[1754981816650,1.19737155,118960.0,118950.0,0.52271868]
[1754981817556,1.19737155,118960.0,118950.0,0.22027313]
[1754981817751,1.19737155,118960.0,118950.0,0.52271868]
[1754981818055,1.4998171,118960.0,118950.0,0.52271868]
[1754981819457,1.19737155,118960.0,118950.0,0.52271868]
[1754981819956,1.4998171,118960.0,118950.0,0.22027313]
[1754981821251,1.4998171,118960.0,118950.0,0.15744313]
[1754981821451,1.4998171,118960.0,118950.0,0.10247313]
[1754981821847,1.4998171,118960.0,118950.0,0.12586313]
[1754981822247,1.4998171,118960.0,118950.0,0.15881313]
[1754981822755,1.4998171,118960.0,118950.0,0.18257313]
[1754981823156,1.4998171,118960.0,118950.0,0.22048313]
[1754981824156,1.4998171,118960.0,118950.0,0.10247313]
[1754981826961,1.4998171,118960.0,118950.0,0.12586313]
[1754981827151,0.7280971,118960.0,118950.0,0.17375313]
[1754981827356,1.19697155,118960.0,118950.0,0.52292868]
[1754981827657,1.4994171,118960.0,118950.0,0.52292868]
[1754981827960,1.4994171,118960.0,118950.0,0.22048313]
[1754981828656,1.33657155,118960.0,118950.0,0.52292868]
[1754981828857,1.19697155,118960.0,118950.0,0.52292868]
[1754981829062,1.4994171,118960.0,118950.0,0.52292868]
[1754981830965,1.4994171,118960.0,118950.0,0.22048313]
[1754981840065,0.894526,118960.0,118950.0,0.22048313]
[1754981840267,1.4994171,118960.0,118950.0,0.22048313]
[1754981840565,1.80154265,118960.0,118950.0,0.01840003]
[1754981841266,0.0840727,118950.0,118940.0,0.1681542]
[1754981841469,0.7037638,118950.0,118940.0,0.21028829]
[1754981844170,0.7037638,118950.0,118940.0,0.12620949]
[1754981845368,0.7037638,118950.0,118940.0,0.04213409]
[1754981845570,0.7206045,118950.0,118940.0,0.01907409]
[1754981852176,0.7206045,118950.0,118940.0,0.04213409]
[1754981855779,0.7206045,118950.0,118940.0,0.12621379]
[1754981855980,0.7206045,118950.0,118940.0,0.13573379]
[1754981856176,0.7206045,118950.0,118940.0,0.16771379]
[1754981857283,0.7206045,118950.0,118940.0,0.08363409]
[1754981857583,0.7206045,118950.0,118940.0,0.11453409]
[1754981859884,0.7206045,118950.0,118940.0,0.19861379]
[1754981860188,0.7206045,118950.0,118940.0,0.22175379]
[1754981860683,0.7206045,118950.0,118940.0,0.13767409]
[1754981863392,0.7206045,118950.0,118940.0,0.09077409]
[1754981863590,0.7206045,118950.0,118940.0,0.06763409]
[1754981863893,0.7206045,118950.0,118940.0,0.05165409]
[1754981864095,0.7206045,118950.0,118940.0,0.04213409]
[1754981868495,0.7206045,118950.0,118940.0,0.01907409]
[1754981869492,0.7206045,118950.0,118940.0,0.04328409]
[1754981872198,0.7206045,118950.0,118940.0,0.01907409]
[1754981872598,0.0840938,118920.0,118910.0,0.07520305]
[1754981872904,1.77647045,118920.0,118910.0,0.07342]
[1754981873200,1.4740249,118920.0,118910.0,0.11983]
[1754981874804,1.48248698,118920.0,118910.0,0.11983]
[1754981875399,1.54856176,118920.0,118910.0,0.11983]
[1754981875695,1.54856176,118920.0,118910.0,0.2039309]
[1754981876203,0.0841009,118910.0,118900.0,0.27653]
[1754981876401,0.39565645,118910.0,118900.0,0.37215]
[1754981877505,0.39565645,118910.0,118900.0,0.37415]
[1754981879503,0.39565645,118910.0,118900.0,0.37515]
[1754981880199,0.703792,118910.0,118900.0,0.37515]
[1754981880505,0.40134645,118910.0,118900.0,0.37515]
[1754981881008,0.39565645,118910.0,118900.0,0.37515]
[1754981882605,0.703792,118910.0,118900.0,0.07642]
[1754981883206,0.703792,118910.0,118900.0,0.160528]
[1754981883806,0.703792,118910.0,118900.0,0.206938]
[1754981886707,0.703792,118910.0,118900.0,0.111318]
[1754981887107,0.0989009,118910.0,118900.0,0.111318]
[1754981887313,0.703792,118910.0,118900.0,0.206938]
[1754981889417,0.703792,118910.0,118900.0,0.192888]
[1754981889912,0.703792,118910.0,118900.0,0.206938]
[1754981890115,0.0989009,118910.0,118900.0,0.206938]
[1754981890313,0.703792,118910.0,118900.0,0.206938]
[1754981902124,0.39565645,118910.0,118900.0,0.206938]
[1754981903430,1.16545645,118910.0,118900.0,0.50938355]
[1754981903937,1.16545645,118910.0,118900.0,0.206938]
[1754981908732,0.39565645,118910.0,118900.0,0.206938]
[1754981908937,1.16537645,118910.0,118900.0,0.206938]
[1754981911340,1.17106645,118910.0,118900.0,0.206938]
[1754981917238,1.16537645,118910.0,118900.0,0.087108]
[1754981917443,1.473512,118910.0,118900.0,0.1110881]
[1754981921943,1.16537645,118910.0,118900.0,0.41353365]
[1754981922145,1.16537645,118910.0,118900.0,0.2048881]
[1754981923145,1.17106645,118910.0,118900.0,0.2048881]
[1754981925750,0.8686209,118910.0,118900.0,0.2048881]
[1754981925950,1.16537645,118910.0,118900.0,0.50733365]
[1754981926451,1.16537645,118910.0,118900.0,0.2048881]
[1754981927946,1.17106645,118910.0,118900.0,0.2048881]
[1754981932661,1.17106645,118910.0,118900.0,0.50733365]
[1754981932952,0.40134645,118910.0,118900.0,0.50733365]
[1754981933153,1.16489645,118910.0,118900.0,0.46105365]
[1754981933358,1.16489645,118910.0,118900.0,0.50929365]
[1754981933560,1.16489645,118910.0,118900.0,0.2068481]
[1754981933756,1.17058645,118910.0,118900.0,0.2068481]
[1754981949165,0.54094645,118910.0,118900.0,0.2068481]
[1754981949373,1.17022645,118910.0,118900.0,0.50929365]
[1754981949574,1.17022645,118910.0,118900.0,0.2068481]
[1754981952177,1.17022645,118910.0,118900.0,0.1586081]
[1754981962380,1.17022645,118910.0,118900.0,0.2075081]
[1754981963581,1.17022645,118910.0,118900.0,0.1926381]
[1754981963780,1.17022645,118910.0,118900.0,0.2075081]
[1754981964080,0.8677809,118910.0,118900.0,0.2075081]
[1754981964281,1.17022645,118910.0,118900.0,0.2075081]
[1754981967682,1.17022645,118910.0,118900.0,0.0871081]
[1754981967882,1.472672,118910.0,118900.0,0.0871081]
[1754981968280,1.472672,118910.0,118900.0,0.1120681]
[1754981968785,1.17022645,118910.0,118900.0,0.1120681]
[1754981969285,1.30982645,118910.0,118900.0,0.1120681]
[1754981969586,1.17022645,118910.0,118900.0,0.1120681]
[1754981970287,1.16453645,118910.0,118900.0,0.51097365]
[1754981970685,1.17022645,118910.0,118900.0,0.51097365]
[1754981971289,1.17022645,118910.0,118900.0,0.2085281]
[1754981971487,1.17022645,118910.0,118900.0,0.51097365]
[1754981972588,0.8677809,118910.0,118900.0,0.51097365]
[1754981972888,1.17022645,118910.0,118900.0,0.2085281]
[1754981979592,1.17022645,118910.0,118900.0,0.51097365]
[1754981980398,1.17022645,118910.0,118900.0,0.2085281]
[1754981980588,1.17022645,118910.0,118900.0,0.51097365]